Cogmind - Beta 16 @@@ ROGUE MODE // 2026.01.28 @ 21:30:54 Player: Anting Result: Destroyed by X4-TMN(R) with Subdweller Machine Gun Performance ------------- Evolutions (0) 0 Regions Visited (2) 400 Robots Destroyed (24) 120 Value Destroyed (560) 560 Prototype IDs (0) 0 Alien Tech Used (0) 0 Bonus (0) 0 TOTAL SCORE: 1080 Bonus ------- None Cogmind --------- Core Integrity 0/250 Matter 236/300 Energy 24/200 System Corruption 2% Temperature Cool (0) Movement Treading (160) Location -10/Subcaves Parts ------- > --- POWER (1) -------- Subdweller Power Source > --- PROPULSION (2) --- Light Treads Spiked Treads > --- UTILITY (2) ------ Small Storage Unit Seismic Detector > --- WEAPON (2) ------- Subdweller Beam Cannon Subdweller Machine Gun > --- INVENTORY (8) ---- Light Treads Spiked Treads Rainbow Chip Subdweller Laser Subdweller Machine Gun Subdweller Machine Gun Grenade Launcher Peak State ------------ > --- POWER ------------ Subdweller Power Source > --- PROPULSION ------- Light Treads Spiked Treads > --- UTILITY ---------- Small Storage Unit Seismic Detector > --- WEAPON ----------- Subdweller Beam Cannon Subdweller Machine Gun > --- INVENTORY -------- Light Treads Light Treads Rainbow Chip Subdweller Laser Subdweller Machine Gun Subdweller Machine Gun Grenade Launcher Grenade Launcher [Rating: 13] Favorites ----------- Power Ion Engine Engine Ion Engine Propulsion Light Treads Treads Light Treads Leg Aluminum Leg Utility Small Storage Unit Device Seismic Detector Storage Small Storage Unit Weapon Subdweller Beam Cannon Energy Gun Small Laser Energy Cannon Subdweller Beam Cannon Ballistic Gun Light Assault Rifle Launcher Grenade Launcher Build | -11 -10 -10 ------- Run | Yrd Mat Sub Slots Evolved . | . . . Power . | . . . Propulsion . | . . . Utility . | . . . Weapon . | . . . Parts Attached 21 | 8 2 11 Power 2 | 1 . 1 Engine 2 | 1 . 1 Core . | . . . Reactor . | . . . Propulsion 7 | 2 2 3 Treads 5 | . 2 3 Leg 2 | 2 . . Wheel . | . . . Hover . | . . . Flight . | . . . Utility 2 | 2 . . Device 1 | 1 . . Storage 1 | 1 . . Processor . | . . . Hackware . | . . . Protection . | . . . Artifact . | . . . Weapon 10 | 3 . 7 Energy Gun 3 | 2 . 1 Energy Cannon 2 | . . 2 Ballistic Gun 4 | 1 . 3 Ballistic Cannon . | . . . Launcher 1 | . . 1 Special Weapon . | . . . Impact Weapon . | . . . Slashing Weapon . | . . . Piercing Weapon . | . . . Special Melee Weapon . | . . . Unidentified Prototypes . | . . . Parts Lost 3 | . . 3 Power . | . . . Propulsion 1 | . . 1 Utility . | . . . Weapon 2 | . . 2 Highest Loss Streak 1 | . . 1 To Critical Strikes . | . . . Average Backups 7 | 3 7 7 Power . | . . . Propulsion 2 | 1 2 3 Utility . | . . . Weapon 3 | . 3 4 Tool/Special . | . . . Unused Backups 9 | . 2 7 Power 1 | . 1 . Propulsion 4 | . . 4 Utility 2 | . 1 1 Weapon 2 | . . 2 Tool/Special . | . . . Average Slot Usage (%) 99 | . 99 99 Engine 14 | . 14 14 Treads 24 | . 2 27 Leg 3 | . 25 . Device 14 | . 14 14 Storage 14 | . 14 14 Energy Gun 5 | . 14 3 Energy Cannon 9 | . . 10 Ballistic Gun 13 | . 14 13 Peak Build Rating 13 | 7 7 13 Average Rating 9 | 5 6 9 On Entrance 4 | . 7 7 Avg Prop Armor Cover (%) . | . . . Naked Turns . | . . . Heaviest Build 23 | 13 13 23 Greatest Support 40 | 20 40 40 Greatest Overweight (x) 1 | 1 . . Average Overweight (x) . | . . . Largest Inventory Capacity 8 | 8 8 8 Average Capacity 7 | 7 8 8 Most Carried 8 | 5 8 8 Average Carried 7 | 3 7 7 Final Capacity 8 | 8 8 8 Final Carried 8 | 5 8 7 Class Distribution -------------------- 90% | Mutant 9% | Scavenger-Mutant Dominant Class ---------------- Mutant | -10/Materials Mutant | -10/Subcaves Resources | -11 -10 -10 ----------- Run | Yrd Mat Sub Matter Collected 507 | 302 6 199 Remotely . | . . . Salvage Created 759 | 218 83 458 Parts 51 | 21 6 24 Haulers Intercepted . | . . . Recyclers Shooed . | . . . Parts Field Recycled . | . . . Retrieved Matter . | . . . Parts Self-Destructed 3 | . . 3 Prevented . | . . . Parts Restored . | . . . Kills | -11 -10 -10 ------- Run | Yrd Mat Sub Combat Hostiles Destroyed 15 | . 2 13 Guns 6 | . 2 4 Cannons 6 | . . 6 AOE 2 | . . 2 Classes Destroyed 5 | 2 1 2 Tunneler 8 | 8 . . Recycler 1 | 1 . . Swarmer 3 | . . 3 Grunt 2 | . 2 . Subdweller 10 | . . 10 Best Kill Streak 5 | 5 2 3 Combat Bots Only 3 | . 2 3 Max Kills in Single Turn 2 | 1 1 2 Gunslinging . | . . . Exploded 2 | . . 2 Melee . | . . . Uniques/NPCs Destroyed . | . . . Combat | -11 -10 -10 -------- Run | Yrd Mat Sub Hostile Shots Fired 71 | . 1 70 Missed 23 | . . 23 Hits 48 | . 1 47 Projectile 48 | . 1 47 Damage Taken 986 | . 10 976 Core 255 | . . 255 Absorbed by Shields . | . . . Core Remaining (%) 100 | 100 . . Volleys Fired 104 | 22 12 70 Largest 2 | 2 2 2 Hottest 110 | 60 60 110 Shots Fired 182 | 44 24 114 Gun 128 | 44 24 60 Cannon 53 | . . 53 Launcher 1 | . . 1 Special . | . . . Kinetic 68 | 22 12 34 Thermal 113 | 22 12 79 Explosive 1 | . . 1 Electromagnetic . | . . . Robot Hit Streak 12 | 8 3 12 Robot Miss Streak 3 | 2 3 2 Penetration Max . | . . . Secondary Targets . | . . . Shots Hit Robots 108 | 26 12 70 Core Hits 34 | 12 4 18 Critical Kills 2 | . . 2 Critical Parts Destroyed . | . . . Critical Strikes 2 | . . 2 Meltdown 1 | . . 1 Destroy 1 | . . 1 Melee Attacks . | . . . Impact . | . . . Slashing . | . . . Piercing . | . . . Sneak Attacks . | . . . Combat Hostiles . | . . . Follow-up Attacks . | . . . Damage Inflicted 1837 | 243 99 1495 Guns 736 | 243 97 396 Cannons 1042 | . . 1042 Explosions 57 | . . 57 Melee . | . . . Ramming 2 | . 2 . Kinetic 363 | 87 54 222 Thermal 1415 | 156 43 1216 Explosive 57 | . . 57 Electromagnetic . | . . . Impact . | . . . Slashing . | . . . Piercing . | . . . Highest Corruption 2 | . 2 2 Average Corruption 2 | . 2 2 Corruption Purged . | . . . Corruption Blocked . | . . . Effects 24 | . . 24 Message Errors 5 | . . 5 Matter Fused 5 | . . 5 Heat Flow Errors 5 | . . 5 Energy Discharges 1 | . . 1 Parts Fused 1 | . . 1 Data Loss (minor) 2 | . . 2 Data Loss (major) 3 | . . 3 Misfires 1 | . . 1 Weapon Failures 1 | . . 1 Overload Shots . | . . . Overflow Damage . | . . . Projectiles . | . . . Explosions . | . . . Melee . | . . . Knockbacks . | . . . Impact . | . . . Kinetic . | . . . Secondary . | . . . Self-Inflicted Damage . | . . . Shots . | . . . Rammed . | . . . Targets Rammed 1 | . 1 . Kicked 1 | . 1 . Crushed . | . . . Highest Temperature 255 | 60 40 255 Average Temperature 45 | 24 15 68 Received Heat Transfer 51 | . 6 45 Siege Activations . | . . . Martial Activations . | . . . Shielding Activations . | . . . Robots Disrupted . | . . . Combat Hostiles . | . . . Robots Corrupted . | . . . Combat Hostiles . | . . . Parts Fried . | . . . Impact Corruptions . | . . . Robots Melted 1 | . . 1 Combat Hostiles 1 | . . 1 Parts Melted 4 | 1 . 3 Heat Transferred 2356 | 350 100 1906 Parts Sabotaged . | . . . Parts Stolen . | . . . Parts Stripped . | . . . Power Chain Reactions . | . . . Alert | -11 -10 -10 ------- Run | Yrd Mat Sub Maximum Alert Level . | . . . Low Security (%) 100 | 100 100 . Level 1 . | . . . Level 2 . | . . . Level 3 . | . . . Level 4 . | . . . Level 5 . | . . . High Security . | . . . Max Security . | . . . Peak Influence 40 | 15 40 . Initial . | . . . Average 3 | 2 5 . Influence Increases 169 | 45 54 70 Destroy 0b10 Robot/C 100 | . 40 60 Destroy 0b10 Robot/NC 45 | 45 . . Destroy Leader 10 | . . 10 Successful Hack 14 | . 14 . Influence Decreases 148 | 45 54 49 Time Decay 138 | 45 54 39 Lost Part 10 | . . 10 Squads Dispatched 1 | . 1 . Investigation . | . . . Extermination . | . . . Reinforcement 1 | . 1 . Assault . | . . . Garrison . | . . . Intercept . | . . . Searches Triggered . | . . . Construction Impeded . | . . . Haulers Reinforced . | . . . Active Scanning Responses . | . . . Cargo Convoy Interrupts . | . . . Stealth | -11 -10 -10 --------- Run | Yrd Mat Sub Distress Signals . | . . . Communications Jammed . | . . . Distress Signals . | . . . Times Spotted 18 | . 4 14 Peak Tracking Total 4 | . 4 3 Tactical Retreats . | . . . Traps | -11 -10 -10 ------- Run | Yrd Mat Sub Traps Triggered 1 | . 1 . Indirectly . | . . . Trap Hack Attempts . | . . . Triggered . | . . . Disarmed . | . . . Reprogrammed . | . . . Reused . | . . . Traps Extracted . | . . . Installed . | . . . Triggered . | . . . Machines | -11 -10 -10 ---------- Run | Yrd Mat Sub Machines Disabled . | . . . Max in Single Turn . | . . . Machines Repaired . | . . . Machines Dismantled . | . . . Machines Sabotaged . | . . . Overloaded Fab Kills . | . . . Hacking | -11 -10 -10 --------- Run | Yrd Mat Sub Machines Accessed 2 | . 2 . Terminals 2 | . 2 . Fabricators . | . . . Repair Stations . | . . . Recycling Units . | . . . Scanalyzers . | . . . Garrison Access . | . . . Total Hacks 7 | . 7 . Successful 2 | . 2 . Failed 5 | . 5 . Catastrophic 1 | . 1 . Database Lockouts . | . . . Manual 7 | . 7 . Terminals 7 | . 7 . Fabricators . | . . . Repair Stations . | . . . Recycling Units . | . . . Scanalyzers . | . . . Garrison Access . | . . . Terminal Hacks 2 | . 2 . Part Schematic 2 | . 2 . Fabricator Hacks . | . . . Repair Station Hacks . | . . . Recycling Unit Hacks . | . . . Scanalyzer . | . . . Garrison Access Hacks . | . . . Unauthorized Hacks . | . . . Terminals . | . . . Fabricators . | . . . Repair Stations . | . . . Recycling Units . | . . . Scanalyzers . | . . . Garrison Access . | . . . Data Cores Recovered . | . . . Used . | . . . Hacking Detections 2 | . 2 . Full Trace Events 1 | . 1 . Feedback Events . | . . . Feedback Blocked . | . . . Robot Schematics Acquired . | . . . Robots Built . | . . . Authchips . | . . . Time . | . . . Total Robot Build Rating . | . . . Part Schematics Acquired 2 | . 2 . Parts Built . | . . . Authchips . | . . . Time . | . . . Total Part Build Rating . | . . . Part Studies Acquired . | . . . Parts Repaired . | . . . Time . | . . . Parts Recycled . | . . . Recycled Matter . | . . . Retrieved Matter . | . . . Retrieved Components . | . . . Parts Scanalyzed . | . . . Part Schematics Acquired . | . . . Parts Damaged . | . . . Bothacking | -11 -10 -10 ------------ Run | Yrd Mat Sub Used RIF Installer . | . . . Robots Hacked . | . . . Non-combat . | . . . Combat . | . . . Robot Hacks Applied . | . . . Relay Couplers Released . | . . . Fabnet Peak Effective % . | . . . Robots Rewired . | . . . Allies Hacked . | . . . Hacks Repelled . | . . . Allies | -11 -10 -10 -------- Run | Yrd Mat Sub Total Allies . | . . . Largest Group . | . . . Highest-Rated Group . | . . . Highest-Rated Ally . | . . . Total Orders . | . . . Ally Attacks . | . . . Total Damage . | . . . Kills . | . . . Allies Corrupted . | . . . Allies Melted . | . . . Intel | -11 -10 -10 ------- Run | Yrd Mat Sub Active Infowar (turns) 2277 | 18 347 1912 Seismic 2277 | 18 347 1912 Robot Analysis Total . | . . . Derelict Logs Recovered 1 | . . 1 Drone Launches . | . . . Drone Recoveries . | . . . Exploration | -11 -10 -10 ------------- Run | Yrd Mat Sub Turns Passed 2499 | 240 347 1912 Spaces Moved 1390 | 126 242 1022 Core 10 | 10 . . Treads 1043 | . 21 1022 Legs 337 | 116 221 . Wheels . | . . . Hover . | . . . Flight . | . . . Fastest Speed 50 | 50 120 160 Average Speed 149 | 115 123 160 Slowest Speed 160 | 120 160 160 Overloaded Moves . | . . . Propulsion Burnouts . | . . . Robots Hopped . | . . . Potential Cave-ins . | . . . Cave-ins Triggered . | . . . Exploration Rate (%) 35 | 7 47 53 Regions Visited 2 Branch Regions 1 Pre-discovered Areas . | . . . Known Exits Taken . | . . . Unknown Exits Taken 2 | 1 1 . Scrap Searched 4 | . . 4 Spaces Dug 2 | . . 2 Terrain Destroyed 4 | . . 4 Melee . | . . . Projectile 4 | . . 4 AOE . | . . . Terrain Rammed . | . . . Walls Destroyed . | . . . Machines Disabled . | . . . Actions | -11 -10 -10 --------- Run | Yrd Mat Sub Total 1643 | 177 270 1196 Wait 97 | 17 5 75 Move 1388 | 125 241 1022 Hop . | . . . Pick Up 16 | 4 5 7 Fast Attach 12 | 8 2 2 Attach 3 | . . 3 Detach 1 | 1 . . Swap 8 | . . 8 Drop 13 | . 4 9 Fire 104 | 22 12 70 Melee . | . . . Ram . | . . . Kick 1 | . 1 . Crush . | . . . Escape Stasis . | . . . Rewire . | . . . Trap . | . . . Miscellaneous . | . . . Route ------- -11/Scrapyard -10/Materials (discovered 3 exits: [*Mat] / [*Min] / [*Sub]) -10/Subcaves (discovered 3 exits: [*Mat x2] / [*Scr]) History --------- Turn | Location | Event 9 | -11/Scrapyard | Discovered new exit (range 16) 241 | -11/Scrapyard | Entered Materials 242 | -10/Materials | Met a group of wandering Federalists 301 | -10/Materials | Build established: Mutant 364 | -10/Materials | Lost 3 allies 371 | -10/Materials | Discovered new exit (range 15) 525 | -10/Materials | Discovered new exit (range 15) 585 | -10/Materials | Discovered new exit (range 3) 588 | -10/Materials | Entered Subcaves 589 | -10/Subcaves | Continued accompanying wandering Federalists (1) 593 | -10/Subcaves | Learned Materials garrison access intel 603 | -10/Subcaves | Discovered new exit (range 8) 851 | -10/Subcaves | Wandering Federalist uncovered a shortcut to Scraptown 1496 | -10/Subcaves | A Subdweller sparked back to life 1506 | -10/Subcaves | A Subdweller sparked back to life 1518 | -10/Subcaves | Found Prototype Processor 2016 | -10/Subcaves | Disturbed a concealed Subdweller 2041 | -10/Subcaves | Disturbed a concealed Subdweller 2173 | -10/Subcaves | Discovered new exit (range 5) 2464 | -10/Subcaves | Core integrity fell below 50% 2481 | -10/Subcaves | Core integrity fell below 20% 2500 | -10/Subcaves | Destroyed by X4-TMN(R) with Subdweller Machine Gun Last Messages --------------- 02214_ System corrupted: Substantial component data lost. 02232_ S-10 Pest destroyed. 02245_ Acquired 17 matter. 02250_ Flight Unit fries itself beyond repair. 02258_ Acquired 12 matter. 02259_ Lgt. Ion Engine fries itself beyond repair. 02268_ Acquired 5 matter. 02269_ Acquired 4 matter. 02314_ System corrupted: Matter fused (-9). 02375_ UMZJUIKWI PKQZ7ZP,9#L5 02438_ SEH=XU%TM9P1M/KB1BRZKT:ZZSYVM 02466_ Sub. Machine Gun shoots sparks and powers down. 02481_ Destroyed Scrap Shield. 02484_ QK-U1X(R) destroyed. 02484_ Sub. Machine Gun shoots sparks and powers down. 02484_ Sub. Beam Cannon destroyed. Map ----- +----------------------------------------------------+ | ?????????????????### ?? | | ???????????????????# ??? | | ?????????????##????# ## ## ### ###???? | | ?????????????# ###### #### ##?##??# #????? | | ?????????????# ## #??# #???????# ##????? | | ????????????## #?? #????????# #?????? | | ????????????# #?# ?????????? ?????? | | ????????????# ## ##?# ???????????????? | | ????????????????# #?? #??????????????? | | ?????????????#### ##?? ######??????????????? | | ???????????### ##??###????????????????????? | | ????????# #$#" ##?????#????????????????????? | | ?????????# #????? ##???????????????????? | | ????????#$ "##" ##????? #???????????????????? | | ????????#???# ##?????? #???????????????????? | | ????????????### ##??????? #???????????????????? | | ?????????????## #??????? ????????????????????? | | ???????????### ##??#### ????????????????????? | | ???????????# #### #???????????????????? | | ???????????# ???????????????????? | | ???????????# ???????????????????? | | ???????????## #### ##????????????????????? | | ???????????## ##??## #????????????????????? | | ???????????# ###?# "#????????????????????? | | ???????????# ### #????????????????????? | | ???????????# #@ ###??????????????????? | | ???????????## #??????????????????? | | ????????????## %R #??????????????????? | | ?????????????### ## #! """??????????????? | | ???????????????## ######## "????????????? | | ????????????????# ##???????# ""???????????? | | ????????????????## ##?????????" ##" ???????????? | | ?????????????????###???????????" #??????????????? | | ???????????????????????????????? ##??????????????? | | ?????????????????????????????????#???????????????? | | ?????????????????????????????????????????????????? | | ?????????????????????????????????????????????????? | | ?????????????????????????????????????????????????? | | ?????????????????????????????????????????????????? | | ?????????????????????????????????????????????????? | | ?????????????????????????????????????????????????? | | ?????????????????????????????????????????????????? | | ?????????????????????????????????????????????????? | | ?????????????????????????????????????????????????? | | ?????????????????????????????????????????????????? | | ?????????????????????????????????????????????????? | | ?????????????????????????????????????????????????? | | ?????????????????????????????????????????????????? | | ?????????????????????????????????????????????????? | | | +----------------------------------------------------+ Best States ------------- Heat Dissipation 25 Energy Generation 15 Energy Capacity 250 Matter Stores 300 Matter Capacity 300 Sight Range 16 Terrain Scan Density 10 Evasion (%) 55 Recoil Reduction 2 Item Schematics ----------------- Hcp. Storage Unit | -10/Materials | Hacked Huge Storage Unit | -10/Materials | Hacked Robot Schematics ------------------ None Fabricated ------------ Nothing Repaired ---------- Nothing Studied --------- None Alien Tech Used ----------------- None Achievements -------------- None Challenges ------------ None Game ------ Seed SignalDirtyRigger Manual? 0 Play Time 00:12:43 Cumulative 419.2 hours Start 2026.01.28 @ 12:43:00 End 2026.01.28 @ 21:30:54 Sessions 3 Manual Loads 0 Difficulty Rogue Special Mode None Game No. 276 Rogue 276 Adventurer 0 Explorer 0 Win Type - Total 27 Types 10/0/8/1/1/0/3/2/1/1 Lore% 84 Gallery% 81 Achievement% 72 Wizard Run 0 Options --------- Layout 1 ASCII 0 Keyboard 0 Movement Mouse Keybinds 0 Fullscreen 2 Font 24/Smallcaps Map View 50x35 Zoom Use 0% Tactical HUD 1 Map Filters NONE Filters NONE Steam 1 RUN: 0cc23827-83d2-4a51-9753-a27b607c3abd